bitfinex/quotes_BTCUSD_20250420
["timestamp","ask_amount","ask_price","bid_price","bid_amount"]
[1745108063337,0.01175696,85056.0,85054.0,0.34]
[1745108064337,0.01175682,85057.0,85054.0,0.34]
[1745108065027,0.01259868,85058.0,85054.0,0.34]
[1745108066139,0.01259868,85058.0,85054.0,0.3870286]
[1745108066339,0.00670714,85057.0,85054.0,0.3870286]
[1745108067897,0.00670714,85057.0,85055.0,0.04702788]
[1745108076679,0.00670714,85057.0,85054.0,0.22581619]
[1745108076894,0.00670714,85057.0,85054.0,0.05878583]
[1745108078248,0.00670714,85057.0,85054.0,0.0470286]
[1745108078651,0.00670714,85057.0,85054.0,0.3870286]
[1745108080269,0.00670714,85057.0,85055.0,0.04702788]
[1745108081172,0.01846396,85057.0,85054.0,0.3870286]
[1745108081497,0.00670714,85057.0,85054.0,0.3870286]
[1745108086498,0.01846396,85057.0,85054.0,0.3870286]
[1745108087030,0.00670714,85057.0,85055.0,0.04702796]
[1745108094835,0.0117564,85060.0,85056.0,0.34]
[1745108094836,0.01175654,85059.0,85056.0,0.34]
[1745108095032,0.0117564,85060.0,85056.0,0.38702731]
[1745108097022,0.0117564,85060.0,85056.0,0.04702731]
[1745108097381,0.24687767,85063.0,85057.0,0.04702682]
[1745108098177,0.24687767,85063.0,85058.0,0.04702635]
[1745108098405,0.046,85067.0,85064.0,0.01175585]
[1745108098600,0.05775543,85067.0,85060.0,0.0117564]
[1745108098965,0.01175557,85066.0,85063.0,0.04702397]
[1745108099478,0.01175557,85066.0,85062.0,0.04702452]
[1745108100571,0.01175571,85065.0,85062.0,0.04702452]
[1745108102399,0.00588422,85064.0,85062.0,0.04702452]
[1745108103054,0.01764007,85064.0,85060.0,0.05576357]
[1745108103674,0.24687831,85063.0,85060.0,0.00873812]
[1745108103870,0.23512538,85061.0,85059.0,0.34]
[1745108104198,0.00588403,85060.0,85058.0,0.01175668]
[1745108104403,0.00588403,85060.0,85059.0,0.0470258]
[1745108104623,0.01175585,85064.0,85059.0,0.05878234]
[1745108104816,0.00588403,85060.0,85059.0,0.0470258]
[1745108105014,0.01175585,85064.0,85059.0,0.0470258]
[1745108105247,0.00588403,85060.0,85059.0,0.0470258]
[1745108105442,0.01175599,85063.0,85060.0,0.04702526]
[1745108105602,0.01175585,85064.0,85060.0,0.04702526]
[1745108105814,0.01175571,85065.0,85061.0,0.04702466]
[1745108107127,0.01175599,85063.0,85060.0,0.04702526]
[1745108107532,0.00589244,85062.0,85060.0,0.04702526]
[1745108109050,0.01175599,85063.0,85060.0,0.04702526]
[1745108109251,0.00589712,85061.0,85060.0,0.04702526]
[1745108109482,0.01175599,85063.0,85060.0,0.04702526]
[1745108109967,0.00589724,85062.0,85060.0,0.04702526]
[1745108110166,0.01765337,85062.0,85058.0,0.05878293]
[1745108110785,0.00589724,85062.0,85058.0,0.05878293]
[1745108112096,0.00589724,85062.0,85058.0,0.04702625]
[1745108112280,0.00589724,85062.0,85056.0,0.34]
[1745108112686,0.01765337,85062.0,85056.0,0.34]
[1745108112902,0.0117564,85060.0,85056.0,0.34]
[1745108113100,0.01175626,85061.0,85056.0,0.35175696]
[1745108113331,0.00589629,85060.0,85057.0,0.0587841]
[1745108113552,0.01175599,85063.0,85058.0,0.01175668]
[1745108113761,0.00589638,85062.0,85058.0,0.01175668]
[1745108114171,0.00589638,85062.0,85059.0,0.04702618]
[1745108116589,0.00589638,85062.0,85059.0,0.05878272]
[1745108116991,0.24687437,85064.0,85059.0,0.05878272]
[1745108116992,0.01175599,85063.0,85060.0,0.34]
[1745108117207,0.00589638,85062.0,85060.0,0.34]
[1745108119319,0.00589638,85062.0,85061.0,0.04702507]
[1745108119745,0.01175585,85064.0,85061.0,0.04702507]
[1745108119947,0.00589224,85062.0,85061.0,0.04702507]
[1745108120344,0.01175585,85064.0,85061.0,0.04702507]
[1745108120841,0.00589229,85063.0,85061.0,0.04702507]
[1745108122367,0.01,85084.0,85068.0,0.0470212]
[1745108122368,0.0482,85076.0,85068.0,0.0470212]
[1745108122770,0.0482,85076.0,85075.0,0.04701733]
[1745108122955,0.0008426,85077.0,85075.0,0.01509551]
[1745108123159,0.00452507,85076.0,85074.0,0.34]
[1745108123385,0.23508668,85075.0,85074.0,0.34]
[1745108123611,0.2396117,85075.0,85074.0,0.34]
[1745108123813,0.01175447,85074.0,85071.0,0.34]
[1745108123961,0.00452502,85075.0,85071.0,0.34]
[1745108124166,0.00452502,85075.0,85071.0,0.35175488]
[1745108124368,0.01175433,85075.0,85071.0,0.35175488]
[1745108124597,0.00452498,85074.0,85071.0,0.35175488]
[1745108125023,0.01627945,85074.0,85071.0,0.34]
[1745108125422,0.00452498,85074.0,85071.0,0.34]
[1745108125668,0.00452498,85074.0,85071.0,0.39877408]
[1745108125821,0.01175419,85076.0,85071.0,0.39877408]
[1745108126034,0.00452493,85073.0,85071.0,0.34]
[1745108126236,0.01175419,85076.0,85071.0,0.35175488]
[1745108126460,0.00452488,85072.0,85071.0,0.34]
[1745108126664,0.01175433,85075.0,85071.0,0.34]
[1745108126834,0.00452488,85072.0,85071.0,0.35175488]
[1745108127090,0.01175433,85075.0,85071.0,0.34]
[1745108127287,0.00452488,85072.0,85071.0,0.34]
[1745108127607,0.01175433,85075.0,85071.0,0.34]
[1745108127608,0.01175419,85076.0,85071.0,0.39877398]
[1745108127883,0.00452488,85072.0,85071.0,0.39877398]
[1745108128045,0.01175419,85076.0,85071.0,0.39877398]
[1745108128247,0.00452488,85072.0,85071.0,0.39877398]
[1745108128470,0.01175419,85076.0,85071.0,0.39877398]
[1745108128690,0.00452488,85072.0,85071.0,0.39877398]
[1745108128884,0.01175433,85075.0,85071.0,0.39877398]
[1745108129090,0.00452488,85072.0,85071.0,0.39877398]
[1745108129290,0.01175433,85075.0,85071.0,0.35175488]
[1745108129510,0.00452488,85072.0,85071.0,0.35175488]
[1745108129712,0.01175433,85075.0,85071.0,0.35175488]
[1745108129914,0.00452488,85072.0,85071.0,0.35175488]
[1745108130110,0.01175447,85074.0,85071.0,0.35175488]
[1745108130429,0.01175447,85074.0,85071.0,0.34]
[1745108130645,0.00452493,85073.0,85071.0,0.34]
[1745108131179,0.01103387,85073.0,85071.0,0.34]
[1745108133576,0.01175433,85075.0,85071.0,0.35175488]
[1745108133769,0.0110806,85072.0,85071.0,0.35175488]
[1745108133916,0.01175419,85076.0,85071.0,0.35175488]
[1745108134118,0.0110806,85072.0,85071.0,0.35175488]
[1745108134344,0.01259665,85077.0,85073.0,0.01175461]
[1745108135377,0.01175419,85076.0,85072.0,0.05877373]
[1745108135516,0.01259665,85077.0,85072.0,0.05877373]
[1745108136331,0.01175226,85090.0,85075.0,0.34]
[1745108136553,0.23504522,85091.0,85070.0,0.14601908]
[1745108136554,0.01175212,85091.0,85087.0,0.34]
[1745108136777,0.00455743,85089.0,85087.0,0.34]
[1745108137181,0.0110806,85088.0,85087.0,0.34]
[1745108145257,0.00455743,85089.0,85088.0,0.41051523]
[1745108147161,0.00455743,85089.0,85088.0,0.07051523]
[1745108155131,0.00455743,85089.0,85086.0,0.28825147]
[1745108155444,0.00455743,85089.0,85088.0,0.07051523]
[1745108161702,0.00455743,85089.0,85088.0,0.54223523]
[1745108172684,0.00455743,85089.0,85088.0,0.54215523]
[1745108173108,0.33310543,85089.0,85088.0,0.34]
[1745108173312,0.33310543,85089.0,85070.0,1.36742698]
[1745108173313,0.01175447,85074.0,85070.0,1.36742698]
[1745108173516,0.23509771,85072.0,85070.0,0.01537908]
[1745108173717,0.047,85071.0,85070.0,0.01537908]
[1745108173892,0.0117553,85068.0,85065.0,0.13164]
[1745108174034,0.23510879,85067.0,85066.0,0.34]
[1745108174432,0.24631363,85067.0,85065.0,0.13164]
[1745108174639,0.24631363,85067.0,85066.0,0.34]
[1745108175481,0.24631363,85067.0,85065.0,0.13164]
[1745108175680,0.24687229,85065.0,85062.0,0.34]
[1745108176135,0.24632385,85064.0,85062.0,0.34]
[1745108177333,0.01175599,85063.0,85060.0,0.34890538]
[1745108177795,0.01120484,85062.0,85060.0,0.34890538]
[1745108178291,0.01175557,85066.0,85061.0,0.10580557]
[1745108178629,0.01175585,85064.0,85060.0,0.14054538]
[1745108178837,0.01175599,85063.0,85060.0,0.13164]
[1745108179611,0.01175571,85065.0,85060.0,0.22569034]
[1745108180378,0.01175571,85065.0,85061.0,0.44580568]
[1745108180979,0.01184603,85066.0,85061.0,0.44580568]
[1745108182012,0.01120484,85065.0,85061.0,0.44580568]
[1745108182208,0.01120484,85065.0,85061.0,0.46056489]
[1745108182415,0.01120484,85065.0,85063.0,0.43404716]
[1745108182926,9.046e-05,85066.0,85065.0,0.09404572]
[1745108183450,0.0112953,85066.0,85064.0,0.34]
[1745108183594,9.046e-05,85066.0,85064.0,0.34]
[1745108183793,0.01112474,85065.0,85064.0,0.34]
[1745108184218,9.046e-05,85066.0,85063.0,0.10580315]
[1745108184641,0.01112474,85065.0,85063.0,0.10580315]
[1745108185036,9.046e-05,85066.0,85064.0,0.09404575]
[1745108185278,9.046e-05,85066.0,85063.0,0.10580315]
[1745108185416,0.01112474,85065.0,85063.0,0.10580315]
[1745108186179,9.046e-05,85066.0,85064.0,0.11755763]
[1745108187081,0.01112474,85065.0,85064.0,0.11755763]
[1745108187603,9.046e-05,85066.0,85063.0,0.01175599]
[1745108187985,0.01112474,85065.0,85063.0,0.01175599]
[1745108188337,9.046e-05,85066.0,85062.0,0.34]
[1745108188567,0.01112474,85064.0,85062.0,0.35175613]
[1745108188887,9.046e-05,85066.0,85064.0,0.11755841]
[1745108193151,9.046e-05,85066.0,85065.0,0.34]
[1745108205601,9.046e-05,85066.0,85065.0,0.4716]
[1745108205802,9.046e-05,85066.0,85065.0,0.34]
[1745108206010,9.046e-05,85066.0,85065.0,0.4716]
[1745108206996,9.046e-05,85066.0,85065.0,0.4726]
[1745108227785,0.05855253,85088.0,85082.0,0.01175336]
[1745108228105,0.05855253,85088.0,85079.0,0.01175378]
[1745108228106,0.01113405,85087.0,85085.0,0.34]
[1745108228466,0.01213405,85087.0,85085.0,0.34]
[1745108229318,0.01213405,85087.0,85084.0,0.11752964]
[1745108233813,0.02388672,85087.0,85084.0,0.11752964]
[1745108234406,0.02388672,85087.0,85083.0,0.11753205]
[1745108235001,0.24686717,85086.0,85083.0,0.11753205]
[1745108235228,0.01117803,85085.0,85083.0,0.11753205]
[1745108238939,0.02293098,85085.0,85080.0,0.12929005]
[1745108239159,0.02293098,85085.0,85081.0,0.11753421]
[1745108239660,0.02293098,85085.0,85081.0,0.12928771]
[1745108240843,0.02293098,85085.0,85081.0,0.11753421]
[1745108241760,0.02293098,85085.0,85082.0,0.11753306]
[1745108242892,0.01117803,85085.0,85082.0,0.11753306]
[1745108243252,0.01117803,85085.0,85083.0,0.45753128]
[1745108243453,0.2462382,85085.0,85083.0,0.34]
[1745108244414,0.01175336,85082.0,85080.0,0.34]
[1745108244584,0.01118264,85081.0,85080.0,0.45753559]
[1745108244766,0.01175295,85085.0,85083.0,0.34]
[1745108245083,0.01118264,85084.0,85083.0,0.34]
[1745108247537,0.0118103,85086.0,85083.0,0.34]
[1745108247763,0.01118479,85084.0,85083.0,0.34]
[1745108247939,0.0118103,85086.0,85083.0,0.34]
[1745108248096,0.01118479,85084.0,85083.0,0.34]
[1745108248443,0.02293819,85084.0,85080.0,0.45753509]
[1745108248743,0.24686853,85086.0,85083.0,0.34]
[1745108249243,0.0118103,85086.0,85083.0,0.34]
[1745108249449,0.01175281,85086.0,85083.0,0.34]
[1745108249667,0.01275267,85087.0,85083.0,0.34]
[1745108250163,0.001,85087.0,85085.0,0.34]
[1745108250511,0.001,85087.0,85085.0,0.33994251]
[1745108250845,0.1780457,85088.0,85085.0,0.33994251]
[1745108254243,0.16629317,85088.0,85087.0,0.34]
[1745108254672,0.16729317,85088.0,85087.0,0.34]
[1745108256014,0.1790457,85088.0,85085.0,0.34]
[1745108256980,0.25799513,85087.0,85084.0,0.34]
[1745108257190,0.25799524,85087.0,85084.0,0.34]
[1745108257395,0.0229416,85087.0,85084.0,0.34]
[1745108258421,0.01118893,85087.0,85084.0,0.45753016]
[1745108259158,0.01118893,85087.0,85084.0,0.34]
[1745108259363,0.0229416,85087.0,85084.0,0.4575301]
[1745108265752,0.01118893,85087.0,85084.0,0.4575301]
[1745108266540,0.0229416,85087.0,85084.0,0.4575301]
[1745108267279,0.25799652,85087.0,85084.0,0.34]
[1745108267480,0.0229416,85087.0,85084.0,0.34]
[1745108269690,0.01118893,85087.0,85086.0,0.34]
[1745108269915,0.0229416,85087.0,85085.0,0.34]
[1745108271008,0.0229416,85087.0,85084.0,0.34]
[1745108271424,0.0229416,85087.0,85084.0,0.45753004]
[1745108272364,0.0229416,85087.0,85084.0,0.11753004]
[1745108273747,0.01118893,85087.0,85084.0,0.11753004]
[1745108274364,0.01118893,85087.0,85085.0,0.34]
[1745108274512,0.01118893,85087.0,85085.0,0.45752887]
[1745108278969,0.01118893,85087.0,85084.0,0.45752979]
[1745108279142,0.01118893,85087.0,85084.0,0.45753008]
[1745108279877,0.01175295,85085.0,85081.0,0.34]
[1745108280082,0.0494,85073.0,85072.0,0.13056]
[1745108280287,0.0494,85073.0,85061.0,0.01475921]
[1745108280288,0.01175585,85064.0,85061.0,0.01475921]
[1745108280814,0.28452261,85062.0,85061.0,0.01405292]
[1745108280944,0.45147052,85062.0,85061.0,0.01405292]
[1745108281147,0.23513643,85057.0,85056.0,0.13056]
[1745108281348,0.41514704,85057.0,85056.0,0.14460737]
[1745108281826,0.41514704,85057.0,85056.0,0.01404737]
[1745108282035,0.46264704,85057.0,85056.0,0.01404737]
[1745108282242,0.34659111,85052.0,85049.0,0.0008424]
[1745108282415,0.80017177,85052.0,85051.0,0.00093286]
[1745108282625,0.81124121,85052.0,85051.0,0.00093286]
[1745108284617,0.81224121,85052.0,85051.0,0.00093286]
[1745108293403,0.79770036,85052.0,85051.0,0.00093286]
[1745108293598,0.4656501,85052.0,85051.0,0.34093286]
[1745108293850,0.34620219,85052.0,85051.0,0.34093286]
[1745108294066,0.34620219,85052.0,85051.0,0.34193286]
[1745108297690,0.01206944,85052.0,85051.0,0.34193286]
[1745108298037,0.001,85052.0,85051.0,0.34193286]
[1745108302879,0.0118728,85052.0,85051.0,0.34193286]
[1745108303834,0.001,85052.0,85051.0,0.34193286]
[1745108304031,0.0118728,85052.0,85051.0,0.34193286]
[1745108307648,0.001,85052.0,85051.0,0.34193286]
[1745108308688,0.24685469,85071.0,85065.0,0.48106859]
[1745108308923,0.45358066,85066.0,85065.0,0.34]
[1745108309548,0.45358066,85066.0,85065.0,0.48106859]
[1745108310337,0.45358066,85066.0,85065.0,0.34]
[1745108310810,0.45358066,85066.0,85065.0,0.341]
[1745108312222,0.11944791,85066.0,85065.0,0.341]
[1745108317024,0.13036769,85066.0,85065.0,0.341]
[1745108320047,0.18026769,85066.0,85065.0,0.341]
[1745108320937,0.18026769,85066.0,85065.0,0.001]
[1745108322042,0.24440854,85066.0,85065.0,0.001]
[1745108322702,0.22986769,85066.0,85065.0,0.001]
[1745108323086,0.13036769,85066.0,85065.0,0.341]
[1745108324440,0.11944791,85066.0,85065.0,0.341]
[1745108324642,0.13042108,85066.0,85065.0,0.341]
[1745108325933,0.01097317,85066.0,85065.0,0.341]
[1745108326484,0.01175488,85071.0,85067.0,0.34]
[1745108326692,0.01097317,85070.0,85067.0,0.34]
[1745108327277,0.01097317,85070.0,85067.0,0.48106432]
[1745108327672,0.01097317,85070.0,85068.0,0.14106241]
[1745108327992,0.01175461,85073.0,85069.0,0.14106083]
[1745108328328,0.11944791,85072.0,85069.0,0.14106083]
[1745108332019,0.01097317,85071.0,85069.0,0.14106083]
[1745108335551,0.01097317,85071.0,85070.0,0.34]
[1745108337750,0.01175433,85075.0,85072.0,0.34]
[1745108338181,0.01098862,85074.0,85072.0,0.4810559]
[1745108339369,0.01175433,85075.0,85072.0,0.4810559]
[1745108339588,0.01098862,85073.0,85072.0,0.4810559]
[1745108339788,0.01175433,85075.0,85072.0,0.4810559]
[1745108339987,0.01098862,85073.0,85072.0,0.4810559]
[1745108340420,0.01175433,85075.0,85072.0,0.4810559]
[1745108340593,0.01098862,85074.0,85072.0,0.4810559]
[1745108341268,0.01098862,85074.0,85072.0,0.4820559]
[1745108341443,0.01098862,85074.0,85072.0,0.4830559]
[1745108341647,0.0496,85087.0,85085.0,0.1410353]
[1745108341941,0.01175309,85084.0,85081.0,0.14104109]
[1745108342143,0.11944791,85083.0,85081.0,0.48104109]
[1745108342496,0.01104916,85082.0,85081.0,0.34]
[1745108342883,0.01110236,85082.0,85081.0,0.34]
[1745108344070,5.32e-05,85082.0,85081.0,0.34]
[1745108348613,5.32e-05,85082.0,85079.0,0.11227758]
[1745108349709,5.32e-05,85082.0,85079.0,0.12403136]
[1745108349953,5.32e-05,85082.0,85080.0,0.14104281]
[1745108350673,5.32e-05,85082.0,85081.0,0.34]
[1745108370840,5.32e-05,85082.0,85081.0,0.341]
[1745108371041,5.32e-05,85082.0,85081.0,0.34]
[1745108371239,5.32e-05,85082.0,85081.0,0.341]
[1745108372770,5.32e-05,85082.0,85081.0,0.47196]
[1745108378177,5.32e-05,85082.0,85081.0,0.001]
[1745108378535,0.11950111,85082.0,85081.0,0.341]
[1745108378679,0.13074054,85082.0,85081.0,0.341]
[1745108378877,0.13074054,85082.0,85081.0,0.001]
[1745108379080,0.13074054,85082.0,85081.0,0.341]
[1745108379307,0.11950111,85082.0,85081.0,0.341]
[1745108379502,0.13074054,85082.0,85081.0,0.341]
[1745108382581,0.22724054,85082.0,85081.0,0.001]
[1745108418082,0.22340452,85082.0,85081.0,0.001]
[1745108421941,0.22340452,85082.0,85081.0,0.002]
[1745108424192,0.12690452,85082.0,85081.0,0.002]
[1745108424388,0.00745661,85082.0,85081.0,0.342]
[1745108424589,5.32e-05,85082.0,85081.0,0.342]
[1745108425199,5.32e-05,85082.0,85081.0,0.3886]
[1745108430578,5.32e-05,85082.0,85081.0,0.343]
[1745108431113,5.32e-05,85082.0,85081.0,0.34]
[1745108431312,5.32e-05,85082.0,85081.0,0.342]
[1745108436029,5.32e-05,85082.0,85081.0,0.002]
[1745108438097,5.32e-05,85082.0,85081.0,0.342]
[1745108461182,5.32e-05,85082.0,85081.0,0.343]
[1745108462775,0.0010532,85082.0,85081.0,0.001]
[1745108464854,0.0010532,85082.0,85081.0,0.341]
[1745108473409,0.0010532,85082.0,85081.0,0.47268]
[1745108478316,0.0010532,85082.0,85081.0,0.341]
[1745108481167,0.0044216,85089.0,85086.0,0.01175281]
[1745108481316,1e-08,85092.0,85089.0,0.3517524]
[1745108481518,1e-08,85092.0,85091.0,0.57504248]
[1745108483619,1e-08,85092.0,85091.0,0.70672248]
[1745108486260,1e-08,85092.0,85091.0,0.53844951]
[1745108499442,1e-08,85092.0,85091.0,0.3008695]
[1745108499652,1e-08,85092.0,85091.0,0.13168]
[1745108500326,1e-08,85092.0,85091.0,0.36672248]
[1745108501505,1e-08,85092.0,85091.0,0.70672248]
[1745108541310,1e-08,85092.0,85091.0,0.47168]
[1745108541512,1e-08,85092.0,85091.0,0.70672248]
[1745108553594,1e-08,85092.0,85091.0,0.36584248]
[1745108554874,1e-08,85092.0,85091.0,0.1308]
[1745108555237,1e-08,85092.0,85091.0,0.36584248]
[1745108566829,1e-08,85092.0,85091.0,0.70584248]
[1745108591309,1e-08,85092.0,85091.0,0.4708]
[1745108591583,1e-08,85092.0,85091.0,0.70584248]
[1745108599295,1e-08,85092.0,85091.0,0.36564248]
[1745108613330,0.04710001,85092.0,85091.0,0.70564248]
[1745108626159,1e-08,85092.0,85091.0,0.70564248]
[1745108643616,1e-08,85092.0,85091.0,0.4706]
[1745108644024,1e-08,85092.0,85091.0,0.70564248]
[1745108646123,4.525e-05,85092.0,85091.0,0.70564248]
[1745108649810,4.525e-05,85092.0,85091.0,0.36564248]
[1745108654532,0.16849316,85092.0,85091.0,0.23504248]
[1745108654781,0.21679316,85092.0,85091.0,0.23504248]
[1745108654983,0.048,85091.0,85090.0,0.07966629]
[1745108655134,0.16744791,85091.0,85090.0,0.07966629]
[1745108655448,0.18335234,85091.0,85090.0,0.07966629]
[1745108656274,0.18335234,85091.0,85090.0,0.23504524]
[1745108656908,0.17805086,85091.0,85090.0,0.23504524]
[1745108665410,0.0488,85090.0,85087.0,0.24680443]
[1745108665641,0.11944791,85089.0,85084.0,0.2468149]
[1745108665916,0.0488,85087.0,85086.0,0.23505596]
[1745108666211,0.16824791,85087.0,85086.0,0.23505596]
[1745108666434,0.22789057,85087.0,85086.0,0.23505596]
[1745108666616,0.51322332,85087.0,85084.0,0.23506181]
[1745108666764,0.16824791,85086.0,85084.0,0.23506181]
[1745108666978,0.0488,85085.0,85084.0,0.23506181]
[1745108667178,0.18089057,85085.0,85084.0,0.23506181]
[1745108667480,0.18089057,85085.0,85083.0,0.24681743]
[1745108667793,0.11944791,85084.0,85083.0,0.24681743]
[1745108668193,0.13209057,85084.0,85083.0,0.24681743]
[1745108668426,0.13209057,85084.0,85082.0,0.23506707]
[1745108670570,0.0485,85080.0,85073.0,0.01175461]
[1745108670724,0.16794791,85079.0,85077.0,0.23507954]
[1745108671067,0.06114266,85078.0,85077.0,0.23507954]
[1745108671222,0.18059057,85078.0,85077.0,0.23507954]
[1745108677296,0.13209057,85078.0,85077.0,0.23507954]
[1745108686597,0.01264266,85078.0,85077.0,0.57507954]
[1745108688179,0.001,85079.0,85078.0,0.34]
[1745108688790,0.33162175,85091.0,85088.0,0.01175253]
[1745108688993,0.11944791,85090.0,85088.0,0.01175253]
[1745108689346,0.12995477,85090.0,85088.0,0.01175253]
[1745108690281,0.12995477,85090.0,85089.0,0.23504799]
[1745108690916,0.12995477,85090.0,85089.0,0.23604799]
[1745108691121,0.01050686,85090.0,85089.0,0.57604799]
[1745108691347,0.33162175,85091.0,85089.0,0.57604799]
[1745108693667,4.525e-05,85092.0,85091.0,0.57504248]
[1745108696238,4.525e-05,85092.0,85089.0,0.24780039]
[1745108697297,4.525e-05,85092.0,85091.0,0.23504248]
[1745108704265,4.525e-05,85092.0,85091.0,0.57504248]
[1745108716021,0.16539316,85092.0,85091.0,0.57504248]
[1745108716652,0.17810104,85092.0,85091.0,0.57504248]
[1745108717281,0.50972279,85092.0,85091.0,0.57504248]
[1745108718326,0.50972279,85092.0,85091.0,0.06527083]
[1745108719605,0.50972279,85092.0,85089.0,0.24780039]
[1745108719606,0.50972279,85092.0,85089.0,0.23604799]
[1745108719772,0.11944791,85091.0,85090.0,0.23504286]
[1745108719969,0.21434791,85091.0,85089.0,0.001]
[1745108720173,0.0458,85090.0,85089.0,0.001]
[1745108720377,0.16524791,85090.0,85089.0,0.001]
[1745108720572,0.17790424,85090.0,85089.0,0.001]
[1745108722730,0.19244509,85090.0,85089.0,0.001]
[1745108722933,0.57316684,85090.0,85089.0,0.001]
[1745108723114,0.57733092,85090.0,85089.0,0.001]
[1745108723849,0.0608535,85081.0,85075.0,0.23508585]
[1745108724055,0.16524791,85080.0,85077.0,0.23507951]
[1745108724554,0.01579144,85079.0,85077.0,0.23507951]
[1745108724777,0.11944791,85078.0,85077.0,0.23507951]
[1745108725348,0.13523935,85078.0,85077.0,0.23507951]
[1745108726050,0.4668611,85078.0,85077.0,0.23507951]
[1745108729128,0.4668611,85078.0,85077.0,0.57507951]
[1745108730928,0.4678611,85078.0,85077.0,0.57507951]
[1745108731171,0.4668611,85078.0,85077.0,0.57507951]
[1745108731342,0.4678611,85078.0,85077.0,0.34]
[1745108731548,0.0495,85072.0,85070.0,0.13056]
[1745108731749,0.06005543,85067.0,85061.0,0.01175626]
[1745108731886,0.0495,85065.0,85062.0,0.01175613]
[1745108732090,0.11944791,85064.0,85063.0,0.57511768]
[1745108732345,0.13515839,85064.0,85063.0,0.23511768]
[1745108733266,0.13515839,85064.0,85063.0,0.57517088]
[1745108733480,0.14969924,85064.0,85063.0,5.32e-05]
[1745108737828,0.48132099,85064.0,85063.0,5.32e-05]
[1745108739622,0.52632099,85064.0,85063.0,5.32e-05]
[1745108744687,0.01454085,85061.0,85057.0,0.01175682]
[1745108744977,0.13398876,85058.0,85057.0,0.01175682]
[1745108745686,0.14963159,85058.0,85057.0,0.01175682]
[1745108746412,0.14963159,85058.0,85057.0,0.24689174]
[1745108748343,0.14963159,85058.0,85057.0,0.23513492]
[1745108749543,0.48125334,85058.0,85057.0,0.23513492]
[1745108754920,0.48125334,85058.0,85056.0,0.01259956]
[1745108755327,0.33162175,85057.0,85056.0,0.01259956]
[1745108755552,0.45106966,85057.0,85056.0,0.24773726]
[1745108755752,0.46664609,85057.0,85056.0,0.24773726]
[1745108757947,0.46664609,85057.0,85056.0,0.63783726]
[1745108757948,0.34719818,85057.0,85056.0,0.63783726]
[1745108758128,7.441e-05,85064.0,85063.0,0.57511985]
[1745108759313,7.441e-05,85064.0,85063.0,0.62421985]
[1745108760166,1e-08,85064.0,85063.0,0.62421985]
[1745108760331,1e-08,85064.0,85063.0,0.67341985]
[1745108761312,1e-08,85064.0,85063.0,0.57511985]
[1745108761512,1e-08,85064.0,85063.0,0.70575985]
[1745108771682,1e-08,85064.0,85063.0,0.57511985]
[1745108780510,0.11944792,85064.0,85063.0,0.57511985]
[1745108780712,0.01175613,85062.0,85058.0,0.23513142]
[1745108780850,0.11944791,85061.0,85060.0,0.24688454]
[1745108781192,0.13318315,85061.0,85060.0,0.58688454]
[1745108783246,0.13318315,85061.0,85060.0,0.57512814]
[1745108783447,0.13318315,85061.0,85060.0,0.34]
[1745108783650,0.0451,85060.0,85056.0,0.57697973]
[1745108783847,0.11944791,85059.0,85056.0,0.58873669]
[1745108784050,0.13315656,85059.0,85058.0,0.34]
[1745108784684,0.54205656,85059.0,85058.0,0.34]
[1745108789121,0.54205656,85059.0,85056.0,0.01359956]
[1745108790191,0.54205656,85059.0,85058.0,0.34]
[1745108791493,0.54205656,85059.0,85056.0,0.01259956]
[1745108791696,0.54205656,85059.0,85057.0,0.34]
[1745108792000,0.54205656,85059.0,85057.0,0.57513509]
[1745108793579,0.54205656,85059.0,85057.0,0.34]
[1745108793699,0.5538131,85059.0,85056.0,0.0008426]
[1745108793904,0.5538131,85059.0,85056.0,0.3408426]
[1745108794197,0.54205656,85059.0,85057.0,0.23513643]
[1745108800138,0.54205656,85059.0,85056.0,0.58773598]
[1745108800463,0.54205656,85059.0,85056.0,0.58773656]
[1745108801264,0.54205656,85059.0,85057.0,0.23513461]
[1745108805324,0.54205656,85059.0,85058.0,0.34]
[1745108805520,0.54205656,85059.0,85058.0,0.12265366]
[1745108805740,0.54205656,85059.0,85057.0,0.23513461]
[1745108811203,0.54205656,85059.0,85058.0,0.34]
[1745108813166,0.54205656,85059.0,85057.0,0.23513461]
[1745108813872,0.4089,85058.0,85057.0,0.23513461]
[1745108814059,0.52834791,85058.0,85057.0,0.23513461]
[1745108814200,0.54191501,85058.0,85057.0,0.23513461]
[1745108816602,0.53691501,85058.0,85057.0,0.23513461]
[1745108816755,0.53691501,85058.0,85056.0,0.2351392]
[1745108816958,0.11944791,85057.0,85056.0,0.2351392]
[1745108817159,0.11944791,85057.0,85056.0,0.5751392]
[1745108817471,0.13301501,85057.0,85056.0,0.5751392]
[1745108817682,0.13301501,85057.0,85056.0,0.58689616]
[1745108819930,0.53691501,85057.0,85055.0,0.0008428]
[1745108820488,0.4039,85056.0,85055.0,0.0008428]
[1745108820667,0.56954791,85056.0,85055.0,0.0008428]
[1745108820867,0.58310566,85056.0,85055.0,0.0008428]
[1745108821818,0.58410566,85056.0,85055.0,0.0008428]
[1745108836511,0.58410566,85056.0,85052.0,0.01175751]
[1745108836512,0.24781331,85055.0,85052.0,0.01175751]
[1745108836719,0.36635217,85054.0,85051.0,0.0008424]
[1745108836915,0.37986387,85054.0,85051.0,0.0008424]
[1745108837121,0.14471684,85054.0,85051.0,0.0008424]
[1745108837326,0.4039,85053.0,85051.0,0.0008424]
[1745108837644,0.11944791,85052.0,85051.0,0.0008424]
[1745108837846,0.13295961,85052.0,85051.0,0.0008424]
[1745108843146,0.53685961,85052.0,85051.0,0.0008424]
[1745108845831,0.77200987,85052.0,85051.0,0.0008424]
[1745108848214,0.78655072,85052.0,85051.0,0.0008424]
[1745108852678,0.24969664,85050.0,85049.0,0.0008424]
[1745108852861,0.41754455,85050.0,85049.0,0.0008424]
[1745108853223,0.43101492,85050.0,85049.0,0.0008424]
[1745108854911,0.59646283,85050.0,85049.0,0.0008424]
[1745108855119,0.59746283,85050.0,85049.0,0.0008424]
[1745108855661,0.47801492,85050.0,85049.0,0.0008424]
[1745108856285,0.52801492,85050.0,85049.0,0.0008424]
[1745108857828,0.52801492,85050.0,85031.0,0.004]
[1745108857829,0.01176,85034.0,85031.0,0.004]
[1745108858152,0.53255831,85033.0,85031.0,0.004]
[1745108858939,0.76776111,85033.0,85031.0,0.004]
[1745108859126,0.76776111,85033.0,85031.0,0.00409046]
[1745108862615,0.53255831,85033.0,85031.0,0.24029773]
[1745108863599,0.52804187,85033.0,85031.0,0.24029773]
[1745108863806,0.3996868,85032.0,85031.0,0.24029773]
[1745108864018,0.51913471,85032.0,85031.0,0.24029773]